[Event "Early-Titled-Tuesday-Blitz-May-28-2024"]
[Site "Chess.com"]
[Date "2024.05.28"]
[Round "7"]
[White "mbojan"]
[Black "Bauman_Guy"]
[Result "0-1"]
[WhiteElo "2904"]
[BlackElo "2935"]
[TimeControl "180+1"]
[EndTime "9:19:12 PDT"]
[Termination "Bauman_Guy won by resignation"]

1. Nf3 {[%clk 0:03:00.9]} 1... Nf6 {[%clk 0:02:59.3]} 2. g3 {[%clk 0:03:01]}
2... d5 {[%clk 0:02:59.3]} 3. Bg2 {[%clk 0:03:00.9]} 3... c6 {[%clk 0:02:59]} 4.
O-O {[%clk 0:03:00.9]} 4... Bg4 {[%clk 0:02:59.7]} 5. h3 {[%clk 0:02:59.5]} 5...
Bh5 {[%clk 0:02:59.6]} 6. d3 {[%clk 0:02:59.4]} 6... Nbd7 {[%clk 0:03:00.1]} 7.
Qe1 {[%clk 0:02:59.1]} 7... e5 {[%clk 0:03:00]} 8. e4 {[%clk 0:02:59.2]} 8...
dxe4 {[%clk 0:03:00.5]} 9. dxe4 {[%clk 0:03:00.1]} 9... Bd6 {[%clk 0:02:58.1]}
10. a4 {[%clk 0:03:00]} 10... O-O {[%clk 0:02:57.7]} 11. Nbd2 {[%clk 0:02:57.8]}
11... Re8 {[%clk 0:02:56.6]} 12. Nc4 {[%clk 0:02:49.5]} 12... Bf8 {[%clk
0:02:56.2]} 13. Bd2 {[%clk 0:02:43.8]} 13... Qc7 {[%clk 0:02:55.1]} 14. Bc3
{[%clk 0:02:38.9]} 14... b5 {[%clk 0:02:53.3]} 15. Ba5 {[%clk 0:02:20.6]} 15...
Qb7 {[%clk 0:02:49.2]} 16. Ncd2 {[%clk 0:02:20.2]} 16... Nc5 {[%clk 0:02:24]}
17. axb5 {[%clk 0:02:16.6]} 17... cxb5 {[%clk 0:02:24.9]} 18. Nh4 {[%clk
0:02:12.6]} 18... Rec8 {[%clk 0:02:13.1]} 19. Nf5 {[%clk 0:02:04.8]} 19... b4
{[%clk 0:01:56.5]} 20. Nc4 {[%clk 0:01:39]} 20... Rcb8 {[%clk 0:01:50.9]} 21.
Nxe5 {[%clk 0:01:12.4]} 21... Nfxe4 {[%clk 0:01:48.8]} 22. Nd3 {[%clk
0:01:07.1]} 22... Qb5 {[%clk 0:01:45.3]} 23. Nxc5 {[%clk 0:01:05]} 23... Nxc5
{[%clk 0:01:43.4]} 24. Bxa8 {[%clk 0:00:25.9]} 24... Rxa8 {[%clk 0:01:43]} 25.
Qxb4 {[%clk 0:00:26.6]} 25... Qd7 {[%clk 0:01:11.7]} 26. Qf4 {[%clk 0:00:24.9]}
26... Bg6 {[%clk 0:01:06.1]} 27. Ne3 {[%clk 0:00:24.4]} 27... Qxh3 {[%clk
0:01:04.5]} 28. Bb4 {[%clk 0:00:16.9]} 28... Ne6 {[%clk 0:01:02.6]} 29. Qc4
{[%clk 0:00:14.1]} 29... Ng5 {[%clk 0:00:59.6]} 30. Qg4 {[%clk 0:00:05.9]} 30...
Qxg4 {[%clk 0:00:54.2]} 31. Nxg4 {[%clk 0:00:06.8]} 31... Bxb4 {[%clk
0:00:54.5]} 32. Ne3 {[%clk 0:00:06.1]} 32... Nf3+ {[%clk 0:00:52.3]} 33. Kg2
{[%clk 0:00:06.5]} 33... Be4 {[%clk 0:00:52.7]} 34. Kh3 {[%clk 0:00:07.2]} 34...
Bc5 {[%clk 0:00:47.2]} 35. Rfd1 {[%clk 0:00:06.2]} 35... h5 {[%clk 0:00:45]} 36.
c3 {[%clk 0:00:05.4]} 36... Rb8 {[%clk 0:00:42.1]} 37. Ra2 {[%clk 0:00:04.9]}
37... g6 {[%clk 0:00:33.3]} 38. b4 {[%clk 0:00:05.2]} 38... Bxe3 {[%clk
0:00:33.5]} 39. fxe3 {[%clk 0:00:06.1]} 39... Rc8 {[%clk 0:00:32.8]} 40. Rc1
{[%clk 0:00:06.6]} 40... Ne5 {[%clk 0:00:21.3]} 41. Rxa7 {[%clk 0:00:06.3]}
41... Nd3 {[%clk 0:00:21.9]} 42. Rf1 {[%clk 0:00:06.8]} 42... Bf5+ {[%clk
0:00:21.7]} 43. Rxf5 {[%clk 0:00:07.2]} 43... gxf5 {[%clk 0:00:22]} 44. Ra5
{[%clk 0:00:08]} 44... Kg7 {[%clk 0:00:19.4]} 45. Rxf5 {[%clk 0:00:08.2]} 45...
Kg6 {[%clk 0:00:20]} 46. Rf3 {[%clk 0:00:06]} 46... Rxc3 {[%clk 0:00:19.8]} 47.
e4 {[%clk 0:00:06.7]} 47... Rb3 {[%clk 0:00:19.3]} 48. b5 {[%clk 0:00:06.8]}
48... Nc5 {[%clk 0:00:14.8]} 49. Rxb3 {[%clk 0:00:05.9]} 49... Nxb3 {[%clk
0:00:15.7]} 50. b6 {[%clk 0:00:06.8]} 50... Nc5 {[%clk 0:00:16.1]} 51. Kh4
{[%clk 0:00:07.5]} 51... Nb7 {[%clk 0:00:12.7]} 52. g4 {[%clk 0:00:07.4]} 52...
hxg4 {[%clk 0:00:13.2]} 53. Kxg4 {[%clk 0:00:08.3]} 53... Kf6 {[%clk 0:00:14.1]}
54. Kf4 {[%clk 0:00:09.1]} 54... Ke6 {[%clk 0:00:14.7]} 55. Kg5 {[%clk
0:00:09.6]} 55... Ke5 {[%clk 0:00:13.7]} 56. Kg4 {[%clk 0:00:01.5]} 56... Kxe4
{[%clk 0:00:13.9]} 57. Kg5 {[%clk 0:00:02]} 57... f5 {[%clk 0:00:14.2]} 58. Kf6
{[%clk 0:00:02.2]} 58... f4 {[%clk 0:00:14.7]} 59. Ke6 {[%clk 0:00:03]} 59... f3
{[%clk 0:00:15]} 60. Kd7 {[%clk 0:00:03.8]} 60... f2 {[%clk 0:00:15.2]} 61. Kc6
{[%clk 0:00:04.6]} 61... Na5+ {[%clk 0:00:13.9]} 62. Kb5 {[%clk 0:00:05]} 62...
f1=Q+ {[%clk 0:00:14.2]} 0-1

[Event "Early-Titled-Tuesday-Blitz-May-28-2024"]
[Site "Chess.com"]
[Date "2024.05.28"]
[Round "7"]
[White "ZachHKL"]
[Black "jaskol95"]
[Result "0-1"]
[WhiteElo "2350"]
[BlackElo "2525"]
[TimeControl "180+1"]
[EndTime "9:19:14 PDT"]
[Termination "jaskol95 won by checkmate"]

1. c4 {[%clk 0:03:00]} 1... e5 {[%clk 0:02:58.2]} 2. g3 {[%clk 0:03:00.2]} 2...
Nf6 {[%clk 0:02:57.8]} 3. Bg2 {[%clk 0:03:00.5]} 3... d5 {[%clk 0:02:57.4]} 4.
cxd5 {[%clk 0:03:00.6]} 4... Nxd5 {[%clk 0:02:58.3]} 5. Nf3 {[%clk 0:03:01]}
5... Nc6 {[%clk 0:02:58.5]} 6. O-O {[%clk 0:03:00.9]} 6... Be6 {[%clk
0:02:58.1]} 7. d4 {[%clk 0:02:58.8]} 7... exd4 {[%clk 0:02:52]} 8. Nxd4 {[%clk
0:02:58.6]} 8... Nxd4 {[%clk 0:02:52.6]} 9. Qxd4 {[%clk 0:02:58.3]} 9... c6
{[%clk 0:02:53.2]} 10. Nc3 {[%clk 0:02:51.9]} 10... Qf6 {[%clk 0:02:47.5]} 11.
Qxf6 {[%clk 0:02:37.1]} 11... Nxf6 {[%clk 0:02:47.5]} 12. Bf4 {[%clk 0:02:34.3]}
12... Bc5 {[%clk 0:02:42.1]} 13. Na4 {[%clk 0:02:30.6]} 13... Be7 {[%clk
0:02:35.2]} 14. Rac1 {[%clk 0:02:21.6]} 14... Nd5 {[%clk 0:02:30.9]} 15. Bd2
{[%clk 0:02:18.7]} 15... Bf6 {[%clk 0:02:26.1]} 16. b3 {[%clk 0:02:14.8]} 16...
O-O-O {[%clk 0:02:08.4]} 17. Nc5 {[%clk 0:02:13.3]} 17... Nc7 {[%clk 0:01:39.8]}
18. Bf4 {[%clk 0:02:07.4]} 18... g5 {[%clk 0:01:15.8]} 19. Bxc7 {[%clk
0:02:01.3]} 19... Kxc7 {[%clk 0:01:16.7]} 20. Nxe6+ {[%clk 0:02:01.3]} 20...
fxe6 {[%clk 0:01:17.6]} 21. Rc2 {[%clk 0:02:00.5]} 21... Rd4 {[%clk 0:01:13]}
22. e3 {[%clk 0:01:56.4]} 22... Rd6 {[%clk 0:01:11.9]} 23. b4 {[%clk 0:01:54.9]}
23... a6 {[%clk 0:00:51.4]} 24. a4 {[%clk 0:01:53.4]} 24... Kb6 {[%clk 0:00:52]}
25. Be4 {[%clk 0:01:30]} 25... h6 {[%clk 0:00:48.5]} 26. Kg2 {[%clk 0:01:23.6]}
26... Rhd8 {[%clk 0:00:48.9]} 27. Rc4 {[%clk 0:01:00.1]} 27... Rd1 {[%clk
0:00:47.2]} 28. Rxd1 {[%clk 0:01:00]} 28... Rxd1 {[%clk 0:00:48.1]} 29. Bc2
{[%clk 0:00:57]} 29... Ra1 {[%clk 0:00:42.2]} 30. f4 {[%clk 0:00:48.1]} 30...
Kc7 {[%clk 0:00:34.5]} 31. Kf3 {[%clk 0:00:44.2]} 31... Kd6 {[%clk 0:00:31.3]}
32. Re4 {[%clk 0:00:36.1]} 32... Rc1 {[%clk 0:00:19]} 33. Bb3 {[%clk 0:00:30.8]}
33... e5 {[%clk 0:00:19.5]} 34. fxg5 {[%clk 0:00:28]} 34... hxg5 {[%clk
0:00:19.5]} 35. Kg4 {[%clk 0:00:20.8]} 35... Rh1 {[%clk 0:00:19.2]} 36. h3
{[%clk 0:00:20.6]} 36... b6 {[%clk 0:00:17.8]} 37. Rc4 {[%clk 0:00:19.9]} 37...
c5 {[%clk 0:00:17.8]} 38. bxc5+ {[%clk 0:00:19.8]} 38... bxc5 {[%clk 0:00:18.7]}
39. Rc2 {[%clk 0:00:20.2]} 39... Rb1 {[%clk 0:00:18.8]} 40. Rd2+ {[%clk
0:00:20.5]} 40... Kc6 {[%clk 0:00:19.1]} 41. Bd5+ {[%clk 0:00:21.1]} 41... Kb6
{[%clk 0:00:19.5]} 42. Rc2 {[%clk 0:00:21.4]} 42... Rd1 {[%clk 0:00:19]} 43. Bf3
{[%clk 0:00:20.6]} 43... Ra1 {[%clk 0:00:18.9]} 44. Rc4 {[%clk 0:00:20.4]} 44...
Rb1 {[%clk 0:00:17.5]} 45. Kf5 {[%clk 0:00:20.3]} 45... Bd8 {[%clk 0:00:12.3]}
46. Be4 {[%clk 0:00:18.4]} 46... Rf1+ {[%clk 0:00:11.3]} 47. Kxe5 {[%clk
0:00:18.7]} 47... Bc7+ {[%clk 0:00:11.9]} 48. Kd5 {[%clk 0:00:18.4]} 48... Rd1+
{[%clk 0:00:11.5]} 49. Ke6 {[%clk 0:00:18.1]} 49... Bxg3 {[%clk 0:00:11.8]} 50.
Kf5 {[%clk 0:00:18.7]} 50... Bh4 {[%clk 0:00:09.7]} 51. Rc2 {[%clk 0:00:17.5]}
51... Rb1 {[%clk 0:00:08.9]} 52. Rxc5 {[%clk 0:00:16.9]} 52... Rf1+ {[%clk
0:00:08.5]} 53. Ke6 {[%clk 0:00:16.7]} 53... Kxc5 {[%clk 0:00:09.1]} 54. Kd7
{[%clk 0:00:17.5]} 54... Re1 {[%clk 0:00:09.2]} 55. Kc7 {[%clk 0:00:18.2]} 55...
Rxe3 {[%clk 0:00:09.5]} 56. Bf5 {[%clk 0:00:18.5]} 56... Re5 {[%clk 0:00:09.8]}
57. Bg4 {[%clk 0:00:18.9]} 57... Bg3 {[%clk 0:00:10.2]} 58. a5 {[%clk
0:00:16.8]} 58... Kb5 {[%clk 0:00:09.5]} 59. Kb7 {[%clk 0:00:17.5]} 59... Kxa5
{[%clk 0:00:10.1]} 60. Bd1 {[%clk 0:00:17.5]} 60... Kb5 {[%clk 0:00:10.2]} 61.
Bg4 {[%clk 0:00:18.4]} 61... a5 {[%clk 0:00:10.6]} 62. Kc7 {[%clk 0:00:19.3]}
62... Re4+ {[%clk 0:00:10.4]} 63. Kd7 {[%clk 0:00:20.2]} 63... Rxg4 {[%clk
0:00:11]} 64. hxg4 {[%clk 0:00:20]} 64... Bf4 {[%clk 0:00:11.9]} 65. Ke6 {[%clk
0:00:20.7]} 65... a4 {[%clk 0:00:12.8]} 66. Kf5 {[%clk 0:00:21.6]} 66... a3
{[%clk 0:00:13.4]} 67. Kg6 {[%clk 0:00:22.5]} 67... a2 {[%clk 0:00:13.8]} 68.
Kh5 {[%clk 0:00:23.4]} 68... a1=Q {[%clk 0:00:14.4]} 69. Kg6 {[%clk 0:00:24.3]}
69... Qe5 {[%clk 0:00:14.5]} 70. Kh5 {[%clk 0:00:25.2]} 70... Qe8+ {[%clk
0:00:14.9]} 71. Kh6 {[%clk 0:00:25.3]} 71... Be5 {[%clk 0:00:15.4]} 72. Kh7
{[%clk 0:00:24.7]} 72... Qf7+ {[%clk 0:00:13.5]} 73. Kh6 {[%clk 0:00:25]} 73...
Bg7+ {[%clk 0:00:14.2]} 74. Kh7 {[%clk 0:00:25]} 74... Bf6+ {[%clk 0:00:13.5]}
75. Kh6 {[%clk 0:00:25.2]} 75... Qg7+ {[%clk 0:00:13.9]} 76. Kh5 {[%clk
0:00:26.1]} 76... Qh7# {[%clk 0:00:14.5]} 0-1

[Event "Early-Titled-Tuesday-Blitz-May-28-2024"]
[Site "Chess.com"]
[Date "2024.05.28"]
[Round "7"]
[White "ploxoi"]
[Black "Zq1"]
[Result "1-0"]
[WhiteElo "2395"]
[BlackElo "2538"]
[TimeControl "180+1"]
[EndTime "9:19:17 PDT"]
[Termination "ploxoi won on time"]

1. d4 {[%clk 0:03:00.9]} 1... Nf6 {[%clk 0:02:56.9]} 2. c4 {[%clk 0:02:59.8]}
2... a6 {[%clk 0:02:57.1]} 3. Nc3 {[%clk 0:02:58.6]} 3... c5 {[%clk 0:02:57.2]}
4. d5 {[%clk 0:02:47.5]} 4... b5 {[%clk 0:02:56.3]} 5. cxb5 {[%clk 0:02:48.4]}
5... axb5 {[%clk 0:02:56.4]} 6. Nxb5 {[%clk 0:02:49.3]} 6... Qa5+ {[%clk
0:02:56.4]} 7. Nc3 {[%clk 0:02:49.6]} 7... Bb7 {[%clk 0:02:56.6]} 8. e4 {[%clk
0:02:46.2]} 8... Nxe4 {[%clk 0:02:54.8]} 9. Qb3 {[%clk 0:02:39.7]} 9... Nxc3
{[%clk 0:02:23.2]} 10. Qxb7 {[%clk 0:02:05.7]} 10... Ne4+ {[%clk 0:02:22.3]} 11.
Ke2 {[%clk 0:02:05.4]} 11... Nd6 {[%clk 0:02:08.9]} 12. Qb3 {[%clk 0:01:58.9]}
12... g6 {[%clk 0:02:06.8]} 13. Bd2 {[%clk 0:01:58.6]} 13... Qa6+ {[%clk
0:02:05.7]} 14. Ke1 {[%clk 0:01:58.1]} 14... c4 {[%clk 0:02:04.1]} 15. Qc3
{[%clk 0:01:57.6]} 15... Rg8 {[%clk 0:02:02.6]} 16. Qh3 {[%clk 0:01:57]} 16...
h5 {[%clk 0:01:59.4]} 17. Bc3 {[%clk 0:01:56]} 17... Ne4 {[%clk 0:01:55.4]} 18.
Be2 {[%clk 0:01:47]} 18... Nxc3 {[%clk 0:01:53.6]} 19. Qxc3 {[%clk 0:01:47.9]}
19... Bg7 {[%clk 0:01:51.3]} 20. Qxc4 {[%clk 0:01:46.2]} 20... Qxc4 {[%clk
0:01:43.3]} 21. Bxc4 {[%clk 0:01:47.1]} 21... Bxb2 {[%clk 0:01:42.4]} 22. Rb1
{[%clk 0:01:47.6]} 22... Bc3+ {[%clk 0:01:39.9]} 23. Ke2 {[%clk 0:01:35.7]}
23... Kf8 {[%clk 0:01:39.8]} 24. Nf3 {[%clk 0:01:35.9]} 24... Kg7 {[%clk
0:01:39.5]} 25. Rhc1 {[%clk 0:01:36.4]} 25... Bf6 {[%clk 0:01:38.8]} 26. Rb7
{[%clk 0:01:36]} 26... d6 {[%clk 0:01:37.4]} 27. Bb3 {[%clk 0:01:34.6]} 27...
Na6 {[%clk 0:01:35.4]} 28. Bc4 {[%clk 0:01:03.8]} 28... Rgc8 {[%clk 0:01:27.3]}
29. Nd2 {[%clk 0:00:53.6]} 29... Nc5 {[%clk 0:01:24.9]} 30. Rb5 {[%clk
0:00:51.1]} 30... Na4 {[%clk 0:01:17.3]} 31. Ne4 {[%clk 0:00:48.1]} 31... Nc3+
{[%clk 0:01:15.9]} 32. Kd3 {[%clk 0:00:27.3]} 32... Nxe4 {[%clk 0:01:10.1]} 33.
Kxe4 {[%clk 0:00:26.7]} 33... Ra3 {[%clk 0:00:49.5]} 34. Rc2 {[%clk 0:00:20.7]}
34... Bc3 {[%clk 0:00:35.3]} 35. Kd3 {[%clk 0:00:14.3]} 35... Be5+ {[%clk
0:00:28.5]} 36. Rb3 {[%clk 0:00:14]} 36... Ra4 {[%clk 0:00:25.7]} 37. Rb7 {[%clk
0:00:04.5]} 37... Bf6 {[%clk 0:00:22.5]} 38. Bb3 {[%clk 0:00:04.2]} 38... Rd4+
{[%clk 0:00:20.9]} 39. Ke3 {[%clk 0:00:02.5]} 39... Rxc2 {[%clk 0:00:19]} 40.
Bxc2 {[%clk 0:00:03.2]} 40... Rxd5 {[%clk 0:00:19.1]} 41. a4 {[%clk 0:00:02.8]}
41... Re5+ {[%clk 0:00:14.6]} 42. Kf3 {[%clk 0:00:01.8]} 42... Rc5 {[%clk
0:00:14.3]} 43. Bb3 {[%clk 0:00:02.1]} 43... d5 {[%clk 0:00:12.8]} 44. Ke2
{[%clk 0:00:01.4]} 44... e6 {[%clk 0:00:11.7]} 45. g3 {[%clk 0:00:02]} 45... Rc3
{[%clk 0:00:10.9]} 46. h4 {[%clk 0:00:02.4]} 46... d4 {[%clk 0:00:11]} 47. a5
{[%clk 0:00:02.9]} 47... Rc1 {[%clk 0:00:08.1]} 48. a6 {[%clk 0:00:02.8]} 48...
Ra1 {[%clk 0:00:07.2]} 49. Kd3 {[%clk 0:00:02.7]} 49... Kf8 {[%clk 0:00:05.4]}
50. Bc4 {[%clk 0:00:02.4]} 50... Ra3+ {[%clk 0:00:04.5]} 51. Kd2 {[%clk
0:00:02.1]} 51... Be5 {[%clk 0:00:01.8]} 52. a7 {[%clk 0:00:02.1]} 52... Kg7
{[%clk 0:00:02]} 53. Rd7 {[%clk 0:00:01.7]} 53... Kf6 {[%clk 0:00:02.1]} 54. Kd1
{[%clk 0:00:01.2]} 1-0

[Event "Early-Titled-Tuesday-Blitz-May-28-2024"]
[Site "Chess.com"]
[Date "2024.05.28"]
[Round "7"]
[White "ChessSwole"]
[Black "CristianS27"]
[Result "0-1"]
[WhiteElo "2683"]
[BlackElo "2535"]
[TimeControl "180+1"]
[EndTime "9:19:19 PDT"]
[Termination "CristianS27 won by resignation"]

1. Nf3 {[%clk 0:02:58.2]} 1... Nf6 {[%clk 0:02:59.4]} 2. g3 {[%clk 0:02:58]}
2... g6 {[%clk 0:03:00.2]} 3. Bg2 {[%clk 0:02:58.1]} 3... Bg7 {[%clk 0:03:01.1]}
4. O-O {[%clk 0:02:58.7]} 4... O-O {[%clk 0:03:02]} 5. d4 {[%clk 0:02:59.2]}
5... d6 {[%clk 0:03:02.4]} 6. b3 {[%clk 0:02:59.6]} 6... c5 {[%clk 0:03:01.8]}
7. Bb2 {[%clk 0:02:57.5]} 7... cxd4 {[%clk 0:03:01.9]} 8. Nxd4 {[%clk
0:02:58.1]} 8... d5 {[%clk 0:03:02]} 9. Nd2 {[%clk 0:02:50.8]} 9... e5 {[%clk
0:03:01.7]} 10. N4f3 {[%clk 0:02:51]} 10... e4 {[%clk 0:03:01.9]} 11. Nd4 {[%clk
0:02:51.1]} 11... e3 {[%clk 0:03:02.6]} 12. fxe3 {[%clk 0:02:51.1]} 12... Nc6
{[%clk 0:03:03.4]} 13. Nxc6 {[%clk 0:02:47.6]} 13... bxc6 {[%clk 0:03:04.3]} 14.
e4 {[%clk 0:02:46.5]} 14... Ng4 {[%clk 0:02:53.9]} 15. Bxg7 {[%clk 0:02:44.4]}
15... Kxg7 {[%clk 0:02:54.8]} 16. Nf3 {[%clk 0:01:44.4]} 16... dxe4 {[%clk
0:02:53.9]} 17. Qd4+ {[%clk 0:01:43.7]} 17... Kg8 {[%clk 0:02:37.7]} 18. Rfd1
{[%clk 0:01:43.2]} 18... Bf5 {[%clk 0:02:25.4]} 19. Nh4 {[%clk 0:01:27.9]} 19...
Qb6 {[%clk 0:02:10.1]} 20. Qxb6 {[%clk 0:01:24]} 20... axb6 {[%clk 0:02:10]} 21.
Rd6 {[%clk 0:01:24.4]} 21... Rfc8 {[%clk 0:01:56.3]} 22. a4 {[%clk 0:01:03.1]}
22... Ne3 {[%clk 0:01:51.8]} 23. c4 {[%clk 0:00:55.9]} 23... b5 {[%clk
0:01:15.8]} 24. cxb5 {[%clk 0:00:55.5]} 24... cxb5 {[%clk 0:01:16.7]} 25. a5
{[%clk 0:00:56.3]} 25... Rc2 {[%clk 0:01:17]} 26. Bf1 {[%clk 0:00:53.6]} 26...
b4 {[%clk 0:01:03.2]} 27. a6 {[%clk 0:00:43.2]} 27... Ra7 {[%clk 0:01:01.8]} 28.
Rb6 {[%clk 0:00:37.1]} 28... Bc8 {[%clk 0:00:39.5]} 29. Rxb4 {[%clk 0:00:36.7]}
29... f5 {[%clk 0:00:31.9]} 30. Rb6 {[%clk 0:00:32.2]} 30... Nd5 {[%clk
0:00:24.4]} 31. Rd6 {[%clk 0:00:30.4]} 31... Nb4 {[%clk 0:00:21.7]} 32. e3
{[%clk 0:00:24.6]} 32... Kg7 {[%clk 0:00:22.1]} 33. Bc4 {[%clk 0:00:23.8]} 33...
Nd3 {[%clk 0:00:17.9]} 34. Ng2 {[%clk 0:00:18.9]} 34... Ne5 {[%clk 0:00:14.9]}
35. Bf1 {[%clk 0:00:09.4]} 35... Nf3+ {[%clk 0:00:14.8]} 36. Kh1 {[%clk
0:00:10.1]} 36... g5 {[%clk 0:00:10.1]} 37. b4 {[%clk 0:00:09.6]} 37... Rb2
{[%clk 0:00:06.8]} 38. b5 {[%clk 0:00:09.5]} 38... f4 {[%clk 0:00:04.4]} 39. b6
{[%clk 0:00:08.4]} 39... Rxa6 {[%clk 0:00:02.1]} 40. Bxa6 {[%clk 0:00:07.3]}
40... Bxa6 {[%clk 0:00:01.9]} 41. exf4 {[%clk 0:00:04]} 41... e3 {[%clk
0:00:01.8]} 42. Re6 {[%clk 0:00:01.3]} 42... e2 {[%clk 0:00:01.6]} 43. f5 {[%clk
0:00:01.9]} 43... Bb7 {[%clk 0:00:01]} 44. Re3 {[%clk 0:00:01.6]} 44... Kf6
{[%clk 0:00:01.8]} 45. Rxf3 {[%clk 0:00:01.9]} 45... Bxf3 {[%clk 0:00:02.3]} 46.
Kg1 {[%clk 0:00:02.6]} 46... Bxg2 {[%clk 0:00:02.8]} 47. Re1 {[%clk 0:00:02.5]}
47... Bf1 {[%clk 0:00:02.4]} 48. g4 {[%clk 0:00:02.6]} 48... Rxb6 {[%clk
0:00:02.5]} 49. Kf2 {[%clk 0:00:02.7]} 49... Rb4 {[%clk 0:00:02.5]} 50. Kg3
{[%clk 0:00:02.7]} 50... Rf4 {[%clk 0:00:03]} 51. h3 {[%clk 0:00:02.9]} 51...
Ra4 {[%clk 0:00:03.1]} 52. Rb1 {[%clk 0:00:03.2]} 52... Ra3+ {[%clk 0:00:03]}
53. Kf2 {[%clk 0:00:03.1]} 53... Ra6 {[%clk 0:00:03.9]} 54. Rb3 {[%clk
0:00:02.5]} 54... h5 {[%clk 0:00:04.2]} 55. Kg3 {[%clk 0:00:02.7]} 55... h4+
{[%clk 0:00:04.3]} 56. Kf2 {[%clk 0:00:03.1]} 56... Rd6 {[%clk 0:00:04.8]} 57.
Re3 {[%clk 0:00:03.5]} 57... Rd1 {[%clk 0:00:04.2]} 58. Re6+ {[%clk 0:00:03.8]}
58... Kf7 {[%clk 0:00:04.7]} 59. Re5 {[%clk 0:00:03.9]} 59... e1=Q+ {[%clk
0:00:04.6]} 60. Rxe1 {[%clk 0:00:04.1]} 60... Rxe1 {[%clk 0:00:05.5]} 61. Kxe1
{[%clk 0:00:03.3]} 61... Bxh3 {[%clk 0:00:06.4]} 62. Kf2 {[%clk 0:00:03.9]}
62... Bxg4 {[%clk 0:00:07]} 0-1

[Event "Early-Titled-Tuesday-Blitz-May-28-2024"]
[Site "Chess.com"]
[Date "2024.05.28"]
[Round "7"]
[White "eightbyeightchess"]
[Black "DonPreuss"]
[Result "0-1"]
[WhiteElo "2410"]
[BlackElo "2309"]
[TimeControl "180+1"]
[EndTime "9:19:21 PDT"]
[Termination "DonPreuss won by resignation"]

1. e4 {[%clk 0:03:00.9]} 1... Nc6 {[%clk 0:02:56.9]} 2. Nf3 {[%clk 0:02:55.8]}
2... g6 {[%clk 0:02:54.9]} 3. d4 {[%clk 0:02:55.7]} 3... Bg7 {[%clk 0:02:55.3]}
4. d5 {[%clk 0:02:55.8]} 4... Ne5 {[%clk 0:02:55.5]} 5. c4 {[%clk 0:02:51.6]}
5... Nxf3+ {[%clk 0:02:52.7]} 6. Qxf3 {[%clk 0:02:52.5]} 6... e5 {[%clk
0:02:53]} 7. Nc3 {[%clk 0:02:49.4]} 7... d6 {[%clk 0:02:52.8]} 8. g3 {[%clk
0:02:49.4]} 8... Ne7 {[%clk 0:02:53.1]} 9. Bg2 {[%clk 0:02:49.3]} 9... O-O
{[%clk 0:02:53.7]} 10. O-O {[%clk 0:02:48.8]} 10... f5 {[%clk 0:02:53.6]} 11.
Qd3 {[%clk 0:02:48.1]} 11... f4 {[%clk 0:02:52.4]} 12. b4 {[%clk 0:02:43.6]}
12... g5 {[%clk 0:02:52.7]} 13. c5 {[%clk 0:02:43.4]} 13... Ng6 {[%clk
0:02:52.4]} 14. cxd6 {[%clk 0:02:38.3]} 14... cxd6 {[%clk 0:02:52.1]} 15. Bd2
{[%clk 0:02:37.9]} 15... g4 {[%clk 0:02:43.7]} 16. Rfc1 {[%clk 0:02:36.6]} 16...
a6 {[%clk 0:02:33.5]} 17. b5 {[%clk 0:02:26.9]} 17... Qf6 {[%clk 0:02:31.8]} 18.
Be1 {[%clk 0:02:22.6]} 18... f3 {[%clk 0:02:23.7]} 19. Bf1 {[%clk 0:02:18]}
19... Nf4 {[%clk 0:02:23.5]} 20. Qe3 {[%clk 0:01:54.8]} 20... Bh6 {[%clk
0:02:15.5]} 21. Qb6 {[%clk 0:01:52.6]} 21... Ne2+ {[%clk 0:01:17]} 22. Nxe2
{[%clk 0:01:45.6]} 22... fxe2 {[%clk 0:01:16]} 23. Bxe2 {[%clk 0:01:46.5]} 23...
Bxc1 {[%clk 0:01:14.8]} 24. Rxc1 {[%clk 0:01:47.4]} 24... axb5 {[%clk
0:01:06.9]} 25. Rc2 {[%clk 0:01:21.7]} 25... Qg6 {[%clk 0:00:49.2]} 26. Bb4
{[%clk 0:00:32.6]} 26... Qxe4 {[%clk 0:00:45.2]} 27. Qxd6 {[%clk 0:00:32.4]}
27... Bf5 {[%clk 0:00:38.3]} 28. Rd2 {[%clk 0:00:16.7]} 28... Rac8 {[%clk
0:00:26]} 29. Bc5 {[%clk 0:00:12.8]} 29... b4 {[%clk 0:00:22.4]} 30. Qe7 {[%clk
0:00:07.4]} 30... Qb1+ {[%clk 0:00:21.1]} 31. Rd1 {[%clk 0:00:07]} 31... Qc2
{[%clk 0:00:19.4]} 32. Qg5+ {[%clk 0:00:06.9]} 32... Bg6 {[%clk 0:00:18.9]} 33.
Bxf8 {[%clk 0:00:05.4]} 33... Qxe2 {[%clk 0:00:13.6]} 34. Rc1 {[%clk 0:00:03.4]}
34... Rxf8 {[%clk 0:00:12.2]} 35. Rf1 {[%clk 0:00:02.3]} 35... Qf3 {[%clk
0:00:11]} 36. d6 {[%clk 0:00:02.4]} 36... Qd5 {[%clk 0:00:10.1]} 37. Qe7 {[%clk
0:00:01.4]} 37... Qf7 {[%clk 0:00:09.6]} 38. Re1 {[%clk 0:00:01.7]} 38... Qxe7
{[%clk 0:00:09.3]} 39. dxe7 {[%clk 0:00:02.6]} 39... Re8 {[%clk 0:00:09.3]} 40.
Rxe5 {[%clk 0:00:03.4]} 40... Kf7 {[%clk 0:00:09.7]} 41. Rb5 {[%clk 0:00:03.8]}
41... Rxe7 {[%clk 0:00:10.2]} 42. Rxb4 {[%clk 0:00:04.5]} 42... Be4 {[%clk
0:00:08]} 43. h3 {[%clk 0:00:04.8]} 43... h5 {[%clk 0:00:07]} 44. hxg4 {[%clk
0:00:05]} 44... hxg4 {[%clk 0:00:07.6]} 45. f4 {[%clk 0:00:05.7]} 45... Bf3
{[%clk 0:00:07.4]} 46. Kf2 {[%clk 0:00:06.2]} 46... Rc7 {[%clk 0:00:07.6]} 47.
Rb5 {[%clk 0:00:06.2]} 47... Rc2+ {[%clk 0:00:07.3]} 48. Ke3 {[%clk 0:00:06.8]}
48... Rxa2 {[%clk 0:00:07.1]} 49. f5 {[%clk 0:00:06.7]} 49... Re2+ {[%clk
0:00:06.9]} 50. Kf4 {[%clk 0:00:07.1]} 50... Re4+ {[%clk 0:00:07.4]} 51. Kg5
{[%clk 0:00:07.6]} 51... Rc4 {[%clk 0:00:07.3]} 52. f6 {[%clk 0:00:06.9]} 52...
Rc6 {[%clk 0:00:06.9]} 53. Re5 {[%clk 0:00:07.2]} 53... Rxf6 {[%clk 0:00:06.7]}
54. Rc5 {[%clk 0:00:07.7]} 54... Rg6+ {[%clk 0:00:06.9]} 55. Kh4 {[%clk
0:00:08.1]} 55... Rd6 {[%clk 0:00:07.1]} 56. Rf5+ {[%clk 0:00:08]} 56... Ke6
{[%clk 0:00:07.4]} 57. Rg5 {[%clk 0:00:07.6]} 57... b6 {[%clk 0:00:05.6]} 58.
Rg8 {[%clk 0:00:07.7]} 58... Kd5 {[%clk 0:00:05.7]} 59. Rb8 {[%clk 0:00:07.8]}
59... Kc5 {[%clk 0:00:05.9]} 60. Kg5 {[%clk 0:00:08.7]} 60... b5 {[%clk
0:00:05.3]} 61. Kf4 {[%clk 0:00:09.6]} 61... Rb6 {[%clk 0:00:04.4]} 62. Rc8+
{[%clk 0:00:09.7]} 62... Kb4 {[%clk 0:00:02.7]} 63. Ke3 {[%clk 0:00:10.4]} 63...
Kb3 {[%clk 0:00:03.3]} 64. Kd2 {[%clk 0:00:11]} 64... b4 {[%clk 0:00:03.9]} 65.
Kc1 {[%clk 0:00:11.5]} 65... Rd6 {[%clk 0:00:04.1]} 0-1